[Event "Titled Tuesday Blitz April 4 Early 2023"]
[White "Terletsky, Oleg"]
[Black "Leebit02"]
[WhiteFideId "14116774"]
[WhiteElo "2084"]
[BlackElo "2345"]
[Result "0-1"]
[Round "04"]
[TimeControl "180+2"]
[Date "2023.04.04"]
[WhiteClock "0:00:05"]
[BlackClock "0:00:49"]

1. e4 {[%clk 0:03:00]}  c5 {[%clk 0:02:58]} 2. Nf3 {[%clk 0:03:00]}  Nc6 {[%clk 0:02:57]} 3. d4 {[%clk 0:03:00]}  cxd4 {[%clk 0:02:57]} 4. Nxd4 {[%clk 0:03:01]}  Nf6 {[%clk 0:02:57]} 5. Nc3 {[%clk 0:02:59]}  d6 {[%clk 0:02:58]} 6. Bc4 {[%clk 0:02:56]}  Qb6 {[%clk 0:02:58]} 7. Nxc6 {[%clk 0:02:42]}  bxc6 {[%clk 0:02:56]} 8. O-O {[%clk 0:02:40]}  e5 {[%clk 0:02:54]} 9. Kh1 {[%clk 0:02:35]}  Be7 {[%clk 0:02:53]} 10. f4 {[%clk 0:02:10]}  exf4 {[%clk 0:02:48]} 11. Bxf4 {[%clk 0:02:09]}  O-O {[%clk 0:02:14]} 12. e5 {[%clk 0:01:45]}  dxe5 {[%clk 0:02:11]} 13. Bxe5 {[%clk 0:01:45]}  Ng4 {[%clk 0:01:49]} 14. Bg3 {[%clk 0:00:42]}  Ne3 {[%clk 0:01:33]} 15. Qd3 {[%clk 0:00:32]}  Nxc4 {[%clk 0:01:17]} 16. Qxc4 {[%clk 0:00:30]}  Be6 {[%clk 0:01:16]} 17. Qf4 {[%clk 0:00:19]}  Qxb2 {[%clk 0:01:13]} 18. Ne4 {[%clk 0:00:18]}  Bd5 {[%clk 0:01:07]} 19. Rae1 {[%clk 0:00:13]}  Qxc2 {[%clk 0:01:02]} 20. Rf2 {[%clk 0:00:08]}  Qc4 {[%clk 0:00:52]} 21. Rfe2 {[%clk 0:00:07]}  Bb4 {[%clk 0:00:50]} 22. Rc1 {[%clk 0:00:05]}  Qxe2 {[%clk 0:00:49]} 0-1


[Site "https://www.chess.com"]

[Event "Titled Tuesday Blitz April 4 Early 2023"]
[White "Todorovic, Bojan"]
[Black "Shapiro, Viktor"]
[WhiteFideId "917087"]
[BlackFideId "4175700"]
[WhiteElo "2266"]
[BlackElo "2152"]
[Result "1-0"]
[Round "04"]
[TimeControl "180+2"]
[Date "2023.04.04"]
[WhiteClock "0:02:06"]
[BlackClock "0:01:18"]

1. d4 {[%clk 0:02:59]}  Nf6 {[%clk 0:02:58]} 2. c4 {[%clk 0:02:57]}  c5 {[%clk 0:02:58]} 3. d5 {[%clk 0:02:57]}  e6 {[%clk 0:02:59]} 4. Nc3 {[%clk 0:02:56]}  exd5 {[%clk 0:02:59]} 5. cxd5 {[%clk 0:02:56]}  d6 {[%clk 0:02:59]} 6. Nf3 {[%clk 0:02:51]}  g6 {[%clk 0:02:59]} 7. Nd2 {[%clk 0:02:51]}  Bg7 {[%clk 0:02:59]} 8. Nc4 {[%clk 0:02:51]}  O-O {[%clk 0:02:58]} 9. Bf4 {[%clk 0:02:49]}  Ne8 {[%clk 0:02:58]} 10. Qd2 {[%clk 0:02:47]}  a6 {[%clk 0:02:57]} 11. a4 {[%clk 0:02:46]}  Qe7 {[%clk 0:02:50]} 12. Nb6 {[%clk 0:02:41]}  Nd7 {[%clk 0:02:36]} 13. Nxa8 {[%clk 0:02:38]}  Qd8 {[%clk 0:02:33]} 14. a5 {[%clk 0:02:35]}  Ne5 {[%clk 0:02:24]} 15. e3 {[%clk 0:02:28]}  Bf5 {[%clk 0:02:12]} 16. Nb6 {[%clk 0:02:25]}  g5 {[%clk 0:02:12]} 17. Bg3 {[%clk 0:02:21]}  Nc7 {[%clk 0:02:12]} 18. Nc4 {[%clk 0:02:17]}  Re8 {[%clk 0:02:05]} 19. Nxe5 {[%clk 0:02:15]}  Bxe5 {[%clk 0:02:06]} 20. Bxe5 {[%clk 0:02:16]}  Rxe5 {[%clk 0:02:06]} 21. Be2 {[%clk 0:02:12]}  h6 {[%clk 0:01:30]} 22. O-O {[%clk 0:02:11]}  Bg6 {[%clk 0:01:23]} 23. Bd3 {[%clk 0:02:08]}  f5 {[%clk 0:01:18]} 24. f4 {[%clk 0:02:06]} 1-0


[Site "https://www.chess.com"]

[Event "Titled Tuesday Blitz April 4 Early 2023"]
[White "Golubev, Mikhail"]
[Black "I_KID_you_not"]
[WhiteFideId "14100983"]
[WhiteElo "2374"]
[BlackElo "2336"]
[Result "1-0"]
[Round "04"]
[TimeControl "180+2"]
[Date "2023.04.04"]
[WhiteClock "0:00:23"]
[BlackClock "0:00:48"]

1. e4 {[%clk 0:03:00]}  c5 {[%clk 0:03:00]} 2. Nf3 {[%clk 0:03:00]}  Nc6 {[%clk 0:03:00]} 3. Nc3 {[%clk 0:02:59]}  g6 {[%clk 0:03:00]} 4. d4 {[%clk 0:02:59]}  cxd4 {[%clk 0:02:59]} 5. Nxd4 {[%clk 0:03:00]}  Bg7 {[%clk 0:03:00]} 6. Be3 {[%clk 0:03:00]}  Nf6 {[%clk 0:03:00]} 7. Nxc6 {[%clk 0:03:00]}  bxc6 {[%clk 0:03:00]} 8. e5 {[%clk 0:03:00]}  Ng8 {[%clk 0:03:00]} 9. Bd4 {[%clk 0:02:58]}  Qa5 {[%clk 0:03:00]} 10. f4 {[%clk 0:02:57]}  f6 {[%clk 0:02:57]} 11. Qd2 {[%clk 0:02:56]}  fxe5 {[%clk 0:02:53]} 12. fxe5 {[%clk 0:02:55]}  Bxe5 {[%clk 0:02:52]} 13. Qg5 {[%clk 0:02:53]}  d6 {[%clk 0:02:49]} 14. Bxe5 {[%clk 0:02:50]}  Qxe5+ {[%clk 0:02:48]} 15. Qxe5 {[%clk 0:02:49]}  dxe5 {[%clk 0:02:49]} 16. Bc4 {[%clk 0:02:40]}  Nf6 {[%clk 0:02:44]} 17. O-O-O {[%clk 0:02:40]}  Bg4 {[%clk 0:02:41]} 18. Rde1 {[%clk 0:02:28]}  Nd7 {[%clk 0:02:31]} 19. h3 {[%clk 0:02:21]}  Nb6 {[%clk 0:02:15]} 20. Bb3 {[%clk 0:02:07]}  Bf5 {[%clk 0:01:47]} 21. Rxe5 {[%clk 0:01:58]}  O-O-O {[%clk 0:01:39]} 22. Rxe7 {[%clk 0:01:39]}  Rd7 {[%clk 0:01:38]} 23. Rxd7 {[%clk 0:01:33]}  Bxd7 {[%clk 0:01:38]} 24. Re1 {[%clk 0:01:14]}  Re8 {[%clk 0:01:32]} 25. Rxe8+ {[%clk 0:01:12]}  Bxe8 {[%clk 0:01:33]} 26. Ne4 {[%clk 0:01:11]}  Nd7 {[%clk 0:01:22]} 27. Be6 {[%clk 0:00:54]}  Kc7 {[%clk 0:01:09]} 28. Bxd7 {[%clk 0:00:53]}  Bxd7 {[%clk 0:01:05]} 29. Nf6 {[%clk 0:00:52]}  Bc8 {[%clk 0:00:59]} 30. Nxh7 {[%clk 0:00:49]}  Kd6 {[%clk 0:01:00]} 31. Kd2 {[%clk 0:00:39]}  Ke5 {[%clk 0:01:00]} 32. Ke3 {[%clk 0:00:37]}  c5 {[%clk 0:00:56]} 33. Ng5 {[%clk 0:00:35]}  Kf5 {[%clk 0:00:55]} 34. Nf3 {[%clk 0:00:34]}  Bb7 {[%clk 0:00:55]} 35. g4+ {[%clk 0:00:32]}  Ke6 {[%clk 0:00:53]} 36. Kf4 {[%clk 0:00:30]}  Kf6 {[%clk 0:00:53]} 37. h4 {[%clk 0:00:29]}  a5 {[%clk 0:00:52]} 38. c3 {[%clk 0:00:27]}  Bd5 {[%clk 0:00:51]} 39. a3 {[%clk 0:00:27]}  Bc4 {[%clk 0:00:49]} 40. Ne5 {[%clk 0:00:25]}  Be6 {[%clk 0:00:48]} 41. Nd3 {[%clk 0:00:23]} 1-0


[Site "https://www.chess.com"]

[Event "Titled Tuesday Blitz April 4 Early 2023"]
[White "Romero Ruscalleda, Josep"]
[Black "Baches Garcia, Guillermo"]
[WhiteFideId "2231859"]
[BlackFideId "2209764"]
[WhiteElo "2183"]
[BlackElo "2476"]
[Result "1/2-1/2"]
[Round "04"]
[TimeControl "180+2"]
[Date "2023.04.04"]
[WhiteClock "0:00:29"]
[BlackClock "0:00:15"]

1. e4 {[%clk 0:03:00]}  c5 {[%clk 0:02:59]} 2. c3 {[%clk 0:03:00]}  d5 {[%clk 0:02:56]} 3. exd5 {[%clk 0:03:00]}  Qxd5 {[%clk 0:02:57]} 4. Nf3 {[%clk 0:03:00]}  Nc6 {[%clk 0:02:56]} 5. Na3 {[%clk 0:02:59]}  Bg4 {[%clk 0:02:53]} 6. Be2 {[%clk 0:02:57]}  e6 {[%clk 0:02:45]} 7. O-O {[%clk 0:02:55]}  Nf6 {[%clk 0:02:39]} 8. Qb3 {[%clk 0:02:50]}  Qxb3 {[%clk 0:02:30]} 9. axb3 {[%clk 0:02:50]}  Be7 {[%clk 0:02:30]} 10. h3 {[%clk 0:02:44]}  Bh5 {[%clk 0:02:29]} 11. Nb5 {[%clk 0:02:37]}  O-O {[%clk 0:02:27]} 12. d3 {[%clk 0:02:23]}  Rfd8 {[%clk 0:02:23]} 13. Rd1 {[%clk 0:02:21]}  a6 {[%clk 0:02:12]} 14. Na3 {[%clk 0:02:21]}  b5 {[%clk 0:02:12]} 15. Be3 {[%clk 0:02:19]}  Nd5 {[%clk 0:02:07]} 16. Nc2 {[%clk 0:02:15]}  Nxe3 {[%clk 0:02:03]} 17. fxe3 {[%clk 0:02:14]}  Bg6 {[%clk 0:01:57]} 18. Kf2 {[%clk 0:02:06]}  e5 {[%clk 0:01:49]} 19. e4 {[%clk 0:02:04]}  f6 {[%clk 0:01:44]} 20. Ne3 {[%clk 0:02:04]}  Bf7 {[%clk 0:01:42]} 21. Nh4 {[%clk 0:02:02]}  Bxb3 {[%clk 0:01:40]} 22. Rd2 {[%clk 0:01:58]}  g6 {[%clk 0:01:36]} 23. c4 {[%clk 0:01:49]}  bxc4 {[%clk 0:01:30]} 24. Nd5 {[%clk 0:01:42]}  cxd3 {[%clk 0:01:26]} 25. Bxd3 {[%clk 0:01:42]}  c4 {[%clk 0:01:08]} 26. Be2 {[%clk 0:01:38]}  Bc5+ {[%clk 0:01:03]} 27. Kf1 {[%clk 0:01:38]}  Kg7 {[%clk 0:01:03]} 28. Nf3 {[%clk 0:01:27]}  Nb4 {[%clk 0:00:58]} 29. Nc7 {[%clk 0:01:25]}  Rxd2 {[%clk 0:00:50]} 30. Nxd2 {[%clk 0:01:25]}  Rc8 {[%clk 0:00:45]} 31. Nxa6 {[%clk 0:01:06]}  Nxa6 {[%clk 0:00:35]} 32. Nxb3 {[%clk 0:01:02]}  cxb3 {[%clk 0:00:32]} 33. Bxa6 {[%clk 0:00:55]}  Rd8 {[%clk 0:00:29]} 34. Ke2 {[%clk 0:00:52]}  Rd4 {[%clk 0:00:22]} 35. Bd3 {[%clk 0:00:47]}  Rb4 {[%clk 0:00:22]} 36. Ra5 {[%clk 0:00:46]}  Bd4 {[%clk 0:00:22]} 37. Rb5 {[%clk 0:00:37]}  Rxb5 {[%clk 0:00:22]} 38. Bxb5 {[%clk 0:00:37]}  Bxb2 {[%clk 0:00:22]} 39. Bc4 {[%clk 0:00:37]}  Kh6 {[%clk 0:00:22]} 40. Kf3 {[%clk 0:00:35]}  Kg5 {[%clk 0:00:22]} 41. Bxb3 {[%clk 0:00:34]}  h5 {[%clk 0:00:21]} 42. Bf7 {[%clk 0:00:33]}  h4 {[%clk 0:00:20]} 43. Be6 {[%clk 0:00:32]}  Bd4 {[%clk 0:00:20]} 44. Bd7 {[%clk 0:00:31]}  Bc5 {[%clk 0:00:21]} 45. Be6 {[%clk 0:00:31]}  Bb6 {[%clk 0:00:21]} 46. Bd7 {[%clk 0:00:31]}  Ba5 {[%clk 0:00:20]} 47. Be6 {[%clk 0:00:31]}  Be1 {[%clk 0:00:20]} 48. Bd7 {[%clk 0:00:31]}  Bg3 {[%clk 0:00:20]} 49. Be6 {[%clk 0:00:30]}  f5 {[%clk 0:00:20]} 50. Bd7 {[%clk 0:00:29]}  Kf6 {[%clk 0:00:20]} 51. Bc8 {[%clk 0:00:29]}  Kg5 {[%clk 0:00:20]} 52. Bd7 {[%clk 0:00:29]}  Kf6 {[%clk 0:00:14]} 53. Bc8 {[%clk 0:00:29]}  Kg5 {[%clk 0:00:15]} 54. Bd7 {[%clk 0:00:29]} 1/2-1/2


[Site "https://www.chess.com"]

[Event "Titled Tuesday Blitz April 4 Early 2023"]
[White "Ovezdurdyyeva, Jemal"]
[Black "Bettalli, Francesco"]
[WhiteFideId "14001888"]
[BlackFideId "2816453"]
[WhiteElo "2043"]
[BlackElo "2216"]
[Result "1-0"]
[Round "04"]
[TimeControl "180+2"]
[Date "2023.04.04"]
[WhiteClock "0:00:16"]
[BlackClock "0:00:11"]

1. e4 {[%clk 0:03:00]}  g6 {[%clk 0:02:59]} 2. d4 {[%clk 0:03:00]}  Bg7 {[%clk 0:02:59]} 3. Nc3 {[%clk 0:02:59]}  d6 {[%clk 0:02:59]} 4. Nf3 {[%clk 0:03:00]}  a6 {[%clk 0:03:00]} 5. h3 {[%clk 0:02:57]}  b5 {[%clk 0:03:00]} 6. a3 {[%clk 0:02:57]}  Bb7 {[%clk 0:03:01]} 7. Bg5 {[%clk 0:02:55]}  Nd7 {[%clk 0:03:01]} 8. Be2 {[%clk 0:02:50]}  h6 {[%clk 0:02:59]} 9. Be3 {[%clk 0:02:49]}  c5 {[%clk 0:02:57]} 10. Qd2 {[%clk 0:02:42]}  cxd4 {[%clk 0:02:53]} 11. Nxd4 {[%clk 0:02:37]}  Ngf6 {[%clk 0:02:52]} 12. O-O {[%clk 0:02:35]}  Nxe4 {[%clk 0:02:48]} 13. Nxe4 {[%clk 0:02:35]}  Bxe4 {[%clk 0:02:49]} 14. Rfe1 {[%clk 0:02:28]}  h5 {[%clk 0:02:43]} 15. Bg5 {[%clk 0:02:25]}  Nf6 {[%clk 0:02:36]} 16. a4 {[%clk 0:02:09]}  bxa4 {[%clk 0:02:30]} 17. Rxa4 {[%clk 0:02:05]}  Bb7 {[%clk 0:02:29]} 18. Bf3 {[%clk 0:01:24]}  Bxf3 {[%clk 0:02:26]} 19. Nxf3 {[%clk 0:01:25]}  O-O {[%clk 0:02:26]} 20. Qe2 {[%clk 0:01:25]}  Qb6 {[%clk 0:02:15]} 21. Qxe7 {[%clk 0:01:15]}  Rfe8 {[%clk 0:02:14]} 22. Bxf6 {[%clk 0:00:55]}  Rxe7 {[%clk 0:02:13]} 23. Bxe7 {[%clk 0:00:56]}  Re8 {[%clk 0:02:02]} 24. b3 {[%clk 0:00:48]}  Qc7 {[%clk 0:01:47]} 25. Rae4 {[%clk 0:00:39]}  Qxc2 {[%clk 0:01:36]} 26. R4e3 {[%clk 0:00:38]}  d5 {[%clk 0:01:20]} 27. R1e2 {[%clk 0:00:30]}  Qc1+ {[%clk 0:01:15]} 28. Re1 {[%clk 0:00:30]}  Qc6 {[%clk 0:01:10]} 29. Bc5 {[%clk 0:00:15]}  Rxe3 {[%clk 0:01:03]} 30. Bxe3 {[%clk 0:00:14]}  Qc3 {[%clk 0:00:56]} 31. Rb1 {[%clk 0:00:13]}  d4 {[%clk 0:00:50]} 32. Bd2 {[%clk 0:00:13]}  Qc2 {[%clk 0:00:48]} 33. Rc1 {[%clk 0:00:13]}  Qxb3 {[%clk 0:00:47]} 34. Rc8+ {[%clk 0:00:14]}  Bf8 {[%clk 0:00:32]} 35. Bh6 {[%clk 0:00:14]}  Qb1+ {[%clk 0:00:28]} 36. Kh2 {[%clk 0:00:13]}  Kh7 {[%clk 0:00:18]} 37. Bxf8 {[%clk 0:00:12]}  Qb5 {[%clk 0:00:17]} 38. h4 {[%clk 0:00:10]}  d3 {[%clk 0:00:15]} 39. Ng5+ {[%clk 0:00:09]}  Qxg5 {[%clk 0:00:12]} 40. hxg5 {[%clk 0:00:09]}  d2 {[%clk 0:00:13]} 41. Rd8 {[%clk 0:00:09]}  Kg8 {[%clk 0:00:14]} 42. Bb4+ {[%clk 0:00:07]}  Kh7 {[%clk 0:00:11]} 43. Bxd2 {[%clk 0:00:08]}  a5 {[%clk 0:00:11]} 44. Rd7 {[%clk 0:00:09]}  a4 {[%clk 0:00:11]} 45. Rxf7+ {[%clk 0:00:09]}  Kg8 {[%clk 0:00:12]} 46. Ra7 {[%clk 0:00:10]}  a3 {[%clk 0:00:13]} 47. Rxa3 {[%clk 0:00:10]}  Kf8 {[%clk 0:00:12]} 48. Ra7 {[%clk 0:00:11]}  h4 {[%clk 0:00:12]} 49. Kh3 {[%clk 0:00:11]}  Ke8 {[%clk 0:00:12]} 50. Kxh4 {[%clk 0:00:12]}  Kf8 {[%clk 0:00:12]} 51. Kg4 {[%clk 0:00:13]}  Kg8 {[%clk 0:00:13]} 52. Kf4 {[%clk 0:00:13]}  Kh8 {[%clk 0:00:14]} 53. Ke5 {[%clk 0:00:14]}  Kg8 {[%clk 0:00:15]} 54. Kf6 {[%clk 0:00:15]}  Kh8 {[%clk 0:00:11]} 55. Kxg6 {[%clk 0:00:16]}  Kg8 {[%clk 0:00:11]} 56. Ra8# {[%clk 0:00:16]} 1-0


[Site "https://www.chess.com"]

[Event "Titled Tuesday Blitz April 4 Early 2023"]
[White "Nguyen, Hong Anh"]
[Black "Fuzesabonyilaci"]
[WhiteFideId "12406732"]
[WhiteElo "2054"]
[BlackElo "2326"]
[Result "1-0"]
[Round "04"]
[TimeControl "180+2"]
[Date "2023.04.04"]
[WhiteClock "0:00:18"]
[BlackClock "0:00:16"]

1. e4 {[%clk 0:02:54]}  c6 {[%clk 0:03:00]} 2. d4 {[%clk 0:02:54]}  g6 {[%clk 0:03:00]} 3. c4 {[%clk 0:02:51]}  Bg7 {[%clk 0:02:59]} 4. Nc3 {[%clk 0:02:51]}  d6 {[%clk 0:02:50]} 5. Be2 {[%clk 0:02:50]}  e5 {[%clk 0:02:50]} 6. Nf3 {[%clk 0:02:49]}  Ne7 {[%clk 0:02:48]} 7. O-O {[%clk 0:02:49]}  O-O {[%clk 0:02:45]} 8. Be3 {[%clk 0:02:48]}  Bg4 {[%clk 0:02:36]} 9. h3 {[%clk 0:02:39]}  Bxf3 {[%clk 0:02:36]} 10. Bxf3 {[%clk 0:02:39]}  Nd7 {[%clk 0:02:37]} 11. Be2 {[%clk 0:02:30]}  Qc7 {[%clk 0:02:31]} 12. d5 {[%clk 0:02:17]}  c5 {[%clk 0:02:18]} 13. Bg5 {[%clk 0:02:03]}  f6 {[%clk 0:02:18]} 14. Bh4 {[%clk 0:02:03]}  Bh6 {[%clk 0:02:10]} 15. Bg4 {[%clk 0:02:01]}  Kg7 {[%clk 0:02:04]} 16. Rb1 {[%clk 0:01:49]}  Nb6 {[%clk 0:02:00]} 17. Qe2 {[%clk 0:01:42]}  f5 {[%clk 0:01:55]} 18. exf5 {[%clk 0:01:16]}  Nxf5 {[%clk 0:01:53]} 19. Bxf5 {[%clk 0:01:14]}  Rxf5 {[%clk 0:01:50]} 20. Ne4 {[%clk 0:01:08]}  Raf8 {[%clk 0:01:49]} 21. b4 {[%clk 0:01:02]}  cxb4 {[%clk 0:01:46]} 22. Rxb4 {[%clk 0:01:01]}  Nd7 {[%clk 0:01:39]} 23. Be7 {[%clk 0:01:00]}  b6 {[%clk 0:01:19]} 24. Bxd6 {[%clk 0:00:59]}  Qd8 {[%clk 0:01:14]} 25. Bxf8+ {[%clk 0:00:57]}  Qxf8 {[%clk 0:01:14]} 26. Ra4 {[%clk 0:00:56]}  a5 {[%clk 0:01:13]} 27. Qg4 {[%clk 0:00:47]}  Qe7 {[%clk 0:01:04]} 28. d6 {[%clk 0:00:43]}  Qe8 {[%clk 0:00:59]} 29. Ra3 {[%clk 0:00:39]}  Rf4 {[%clk 0:00:56]} 30. Qe2 {[%clk 0:00:36]}  Qe6 {[%clk 0:00:56]} 31. Rg3 {[%clk 0:00:31]}  Rf8 {[%clk 0:00:47]} 32. Rd1 {[%clk 0:00:28]}  Rc8 {[%clk 0:00:48]} 33. Rd5 {[%clk 0:00:21]}  Bf4 {[%clk 0:00:46]} 34. Ng5 {[%clk 0:00:21]}  Qg8 {[%clk 0:00:39]} 35. Rg4 {[%clk 0:00:21]}  Qxd5 {[%clk 0:00:35]} 36. Rxf4 {[%clk 0:00:20]}  Qxd6 {[%clk 0:00:35]} 37. Rf7+ {[%clk 0:00:19]}  Kg8 {[%clk 0:00:34]} 38. Rxh7 {[%clk 0:00:18]}  Qf6 {[%clk 0:00:27]} 39. h4 {[%clk 0:00:17]}  Nf8 {[%clk 0:00:25]} 40. Rf7 {[%clk 0:00:17]}  Qd6 {[%clk 0:00:22]} 41. Rf3 {[%clk 0:00:16]}  Qd4 {[%clk 0:00:20]} 42. Ne4 {[%clk 0:00:16]}  Qxc4 {[%clk 0:00:20]} 43. Nf6+ {[%clk 0:00:16]}  Kg7 {[%clk 0:00:20]} 44. Qxe5 {[%clk 0:00:17]}  Qc1+ {[%clk 0:00:19]} 45. Kh2 {[%clk 0:00:17]}  Qc7 {[%clk 0:00:19]} 46. Ne8+ {[%clk 0:00:17]}  Kh7 {[%clk 0:00:17]} 47. Nxc7 {[%clk 0:00:18]}  Nd7 {[%clk 0:00:16]} 48. Rf7+ {[%clk 0:00:18]} 1-0


[Site "https://www.chess.com"]

[Event "Titled Tuesday Blitz April 4 Early 2023"]
[White "Kohler, Aran"]
[Black "Wahedi, Ahmad Siar"]
[WhiteFideId "1002856"]
[BlackFideId "4651260"]
[WhiteElo "2303"]
[BlackElo "2251"]
[Result "0-1"]
[Round "04"]
[TimeControl "180+2"]
[Date "2023.04.04"]
[WhiteClock "0:00:11"]
[BlackClock "0:01:10"]

1. d4 {[%clk 0:02:59]}  d6 {[%clk 0:02:59]} 2. e4 {[%clk 0:02:57]}  Nf6 {[%clk 0:02:58]} 3. Nc3 {[%clk 0:02:58]}  Nbd7 {[%clk 0:02:57]} 4. f4 {[%clk 0:02:58]}  c5 {[%clk 0:02:54]} 5. d5 {[%clk 0:02:56]}  g6 {[%clk 0:02:53]} 6. Nf3 {[%clk 0:02:56]}  Bg7 {[%clk 0:02:53]} 7. Be2 {[%clk 0:02:47]}  O-O {[%clk 0:02:51]} 8. a4 {[%clk 0:02:46]}  a6 {[%clk 0:02:43]} 9. O-O {[%clk 0:02:45]}  Rb8 {[%clk 0:02:43]} 10. Kh1 {[%clk 0:02:31]}  b5 {[%clk 0:02:39]} 11. axb5 {[%clk 0:02:28]}  axb5 {[%clk 0:02:39]} 12. e5 {[%clk 0:02:28]}  Ng4 {[%clk 0:02:37]} 13. e6 {[%clk 0:02:18]}  Nb6 {[%clk 0:02:26]} 14. exf7+ {[%clk 0:02:13]}  Rxf7 {[%clk 0:02:26]} 15. Ng5 {[%clk 0:02:13]}  Nf6 {[%clk 0:02:18]} 16. Nxf7 {[%clk 0:02:12]}  Kxf7 {[%clk 0:02:18]} 17. Bxb5 {[%clk 0:02:10]}  Bf5 {[%clk 0:02:13]} 18. Qe2 {[%clk 0:01:59]}  h5 {[%clk 0:02:12]} 19. Bc6 {[%clk 0:01:53]}  Qc7 {[%clk 0:02:09]} 20. Be3 {[%clk 0:01:52]}  Ne4 {[%clk 0:02:03]} 21. Nb5 {[%clk 0:01:39]}  Qd8 {[%clk 0:02:01]} 22. c4 {[%clk 0:01:33]}  Nc8 {[%clk 0:01:45]} 23. Ra8 {[%clk 0:01:25]}  Rxa8 {[%clk 0:01:42]} 24. Bxa8 {[%clk 0:01:26]}  Qa5 {[%clk 0:01:43]} 25. Bc6 {[%clk 0:01:24]}  Qb4 {[%clk 0:01:43]} 26. Bc1 {[%clk 0:01:10]}  Nb6 {[%clk 0:01:40]} 27. Na3 {[%clk 0:01:09]}  Bd4 {[%clk 0:01:36]} 28. Nc2 {[%clk 0:00:39]}  Qxc4 {[%clk 0:01:34]} 29. Qxc4 {[%clk 0:00:38]}  Nxc4 {[%clk 0:01:34]} 30. Nxd4 {[%clk 0:00:39]}  cxd4 {[%clk 0:01:34]} 31. Bb5 {[%clk 0:00:35]}  Nb6 {[%clk 0:01:29]} 32. g3 {[%clk 0:00:25]}  Nxd5 {[%clk 0:01:28]} 33. Kg2 {[%clk 0:00:22]}  Nb4 {[%clk 0:01:20]} 34. Rd1 {[%clk 0:00:20]}  e5 {[%clk 0:01:20]} 35. fxe5 {[%clk 0:00:20]}  dxe5 {[%clk 0:01:20]} 36. Bd2 {[%clk 0:00:19]}  Nxd2 {[%clk 0:01:17]} 37. Rxd2 {[%clk 0:00:20]}  Ke6 {[%clk 0:01:17]} 38. h4 {[%clk 0:00:19]}  Kd5 {[%clk 0:01:17]} 39. Be8 {[%clk 0:00:18]}  e4 {[%clk 0:01:17]} 40. Bf7+ {[%clk 0:00:18]}  Kc5 {[%clk 0:01:17]} 41. Rd1 {[%clk 0:00:17]}  Nc2 {[%clk 0:01:15]} 42. Rc1 {[%clk 0:00:14]}  d3 {[%clk 0:01:15]} 43. Rd1 {[%clk 0:00:15]}  Kd4 {[%clk 0:01:15]} 44. Kf2 {[%clk 0:00:15]}  e3+ {[%clk 0:01:14]} 45. Kf3 {[%clk 0:00:15]}  Bg4+ {[%clk 0:01:13]} 46. Kf4 {[%clk 0:00:11]}  Bxd1 {[%clk 0:01:14]} 47. Bxg6 {[%clk 0:00:11]}  e2 {[%clk 0:01:10]} 0-1


[Site "https://www.chess.com"]

[Event "Titled Tuesday Blitz April 4 Early 2023"]
[White "Erzhanov, Arman"]
[Black "Kraus, Tomas"]
[WhiteFideId "4138821"]
[BlackFideId "331708"]
[WhiteElo "2138"]
[BlackElo "2389"]
[Result "0-1"]
[Round "04"]
[TimeControl "180+2"]
[Date "2023.04.04"]
[WhiteClock "0:00:27"]
[BlackClock "0:00:18"]

1. e4 {[%clk 0:03:00]}  e6 {[%clk 0:02:59]} 2. b3 {[%clk 0:03:00]}  d5 {[%clk 0:03:00]} 3. Bb2 {[%clk 0:03:00]}  Nf6 {[%clk 0:02:56]} 4. e5 {[%clk 0:02:59]}  Nfd7 {[%clk 0:02:56]} 5. f4 {[%clk 0:02:56]}  c5 {[%clk 0:02:54]} 6. Nf3 {[%clk 0:02:57]}  Nc6 {[%clk 0:02:54]} 7. c4 {[%clk 0:02:57]}  d4 {[%clk 0:02:41]} 8. Bd3 {[%clk 0:02:56]}  h6 {[%clk 0:02:31]} 9. O-O {[%clk 0:02:55]}  b6 {[%clk 0:02:32]} 10. Be4 {[%clk 0:02:53]}  Bb7 {[%clk 0:02:31]} 11. d3 {[%clk 0:02:53]}  Qc7 {[%clk 0:02:31]} 12. Nbd2 {[%clk 0:02:53]}  O-O-O {[%clk 0:02:31]} 13. h4 {[%clk 0:02:34]}  Be7 {[%clk 0:02:27]} 14. h5 {[%clk 0:02:34]}  f5 {[%clk 0:02:28]} 15. exf6 {[%clk 0:02:32]}  gxf6 {[%clk 0:02:28]} 16. Bg6 {[%clk 0:02:13]}  Qxf4 {[%clk 0:02:18]} 17. Ne4 {[%clk 0:02:06]}  Nce5 {[%clk 0:02:09]} 18. Bc1 {[%clk 0:01:55]}  Qg4 {[%clk 0:01:44]} 19. Nxe5 {[%clk 0:01:39]}  Nxe5 {[%clk 0:01:43]} 20. Qxg4 {[%clk 0:01:31]}  Nxg4 {[%clk 0:01:42]} 21. Bf7 {[%clk 0:01:30]}  Kd7 {[%clk 0:01:28]} 22. Re1 {[%clk 0:01:16]}  Ne5 {[%clk 0:01:25]} 23. Bg6 {[%clk 0:01:01]}  Nxg6 {[%clk 0:01:15]} 24. hxg6 {[%clk 0:01:01]}  Rdg8 {[%clk 0:01:16]} 25. b4 {[%clk 0:00:59]}  Rxg6 {[%clk 0:01:14]} 26. bxc5 {[%clk 0:00:59]}  bxc5 {[%clk 0:01:14]} 27. Ba3 {[%clk 0:01:00]}  Rhg8 {[%clk 0:00:54]} 28. Re2 {[%clk 0:00:59]}  Bxe4 {[%clk 0:00:42]} 29. dxe4 {[%clk 0:00:58]}  Rb8 {[%clk 0:00:38]} 30. e5 {[%clk 0:00:46]}  f5 {[%clk 0:00:36]} 31. Rd1 {[%clk 0:00:45]}  Rg3 {[%clk 0:00:29]} 32. Bc1 {[%clk 0:00:41]}  h5 {[%clk 0:00:29]} 33. Bf4 {[%clk 0:00:40]}  Ra3 {[%clk 0:00:24]} 34. Kf2 {[%clk 0:00:39]}  Rb4 {[%clk 0:00:20]} 35. Bc1 {[%clk 0:00:36]}  Raa4 {[%clk 0:00:19]} 36. Rh1 {[%clk 0:00:26]}  h4 {[%clk 0:00:19]} 37. g3 {[%clk 0:00:26]}  hxg3+ {[%clk 0:00:19]} 38. Kxg3 {[%clk 0:00:27]}  Rxc4 {[%clk 0:00:19]} 39. Rh7 {[%clk 0:00:28]}  Rc3+ {[%clk 0:00:18]} 40. Kf2 {[%clk 0:00:27]}  Rxc1 {[%clk 0:00:18]} 0-1


[Site "https://www.chess.com"]